[Event "Czech Open-Rapid 2022"]
[Site "Pardubice"]
[Date "2022.07.20"]
[Round "1.7"]
[White "Rakhmangulova, Iulia"]
[Black "Pulpan, Jakub"]
[Result "0-1"]
[ECO "B23"]
[WhiteElo "1904"]
[BlackElo "2424"]
[Annotator "TA"]
[PlyCount "24"]
[EventDate "2022.07.20"]
[EventType "swiss"]
[EventCountry "CZE"]
[SourceTitle "playchess.com"]
[Source "ChessBase"]
[SourceQuality "1"]
[TimeControl "1200+10"]

{[%evp 11,24,18,38,-180,-163,-163,-110,-93,-102,-106,-66,-83,-74,-61,-63]} 1. e4 {[%emt 0:00:01]} c5 {[%emt 0:00:28]} 2. Nc3 {[%emt 0:00:02]} e6 {[%emt 0:00:10][%cal Be7e6,Be6d5,Bd5d4][%mdl 32]} 3. g3 {[%emt 0:00:02]} d5 {[%emt 0:00:07]} 4. exd5 {[%emt 0:00:02]} exd5 {[%emt 0:00:03]} 5. d4 {[%emt 0:00:01]} Nc6 {[%emt 0:00:14]} 6. Nge2 {[%emt 0:01:11]} Bg4 {[%emt 0:00:09] White must now prevent ...cxd4.} 7. dxc5 {[%emt 0:00:16] [#] B23: Closed Sicilian: Lines without g3.} (7. Bg2 $1 $14 {stays ahead.}) 7... d4 $146 {[%emt 0:00:18]} ({Inferior is} 7... Bf3 8. Rg1 $11) ({Predecessor:} 7... Bf3 8. Rg1 d4 9. Qd3 Bg4 10. Ne4 Be7 11. Bf4 Bxc5 12. Nxc5 Qa5+ 13. Bd2 Qxc5 14. O-O-O Nge7 {½-½ (48) Beaudaert,X-Fargere,F Montlucon 1997}) 8. Nb1 {[%emt 0:01:30]} Bf3 {[%emt 0:00:09] Against Bg2} ({Worse is} 8... Bxc5 9. Bg2 $15) ({Black should try} 8... Qd5 $19 9. Rg1 O-O-O) 9. Rg1 $17 {[%emt 0:00:02]} Bxc5 {[%emt 0:01:29]} 10. Nd2 {[%emt 0:00:40]} Ne5 {[%emt 0:01:09] And now ...d3 would win.} 11. Bg2 {[%emt 0:01:28] [#]} Bxg2 {[%emt 0:00:20] Black is much more active. The white rooks are badly placed.} 12. Rxg2 {[%emt 0:00:02]} Nf6 {[%emt 0:00:18] Weighted Error Value: White=0.48/Black=0.13 (very precise)} 0-1

[Event "Czech Open-Rapid 2022"]
[Site "Pardubice"]
[Date "2022.07.20"]
[Round "1.8"]
[White "Jirovsky, Milos"]
[Black "Egri, Tomas"]
[Result "1-0"]
[ECO "A05"]
[WhiteElo "2458"]
[BlackElo "1783"]
[Annotator "TA"]
[PlyCount "61"]
[EventDate "2022.07.20"]
[EventType "swiss"]
[EventCountry "CZE"]
[SourceTitle "playchess.com"]
[Source "ChessBase"]
[SourceQuality "1"]
[TimeControl "1200+10"]

{[%evp 26,61,59,52,70,66,66,61,59,64,64,64,70,64,69,50,53,51,51,49,101,69,47,45,60,51,72,50,71,52,71,128,482,469,386,201,942,934]} 1. Nf3 {[%emt 0:00:01]} Nf6 {[%emt 0:00:09]} 2. c4 {[%emt 0:00:01]} e6 {[%emt 0:00:05]} 3. g3 {[%emt 0:00:02]} d5 {[%emt 0:00:03]} 4. Bg2 {[%emt 0:00:01]} c6 {[%emt 0:00:09]} 5. Qc2 {[%emt 0:00:05]} Be7 {[%emt 0:00:39]} 6. O-O {[%emt 0:00:03]} O-O {[%emt 0:00:16]} 7. d4 {[%emt 0:00:02]} Nbd7 {[%emt 0:02:47]} 8. Rd1 {[%emt 0:00:03]} b6 {[%emt 0:05:01]} 9. b3 {[%emt 0:00:02]} Bb7 {[%emt 0:00:06]} 10. Nc3 {[%emt 0:00:02]} Rc8 {[%emt 0:00:10]} 11. e4 dxe4 {[%emt 0:00:27]} 12. Nxe4 {[%emt 0:00:02]} Nxe4 {[%emt 0:00:16]} 13. Qxe4 {[%emt 0:00:02]} Nf6 {[%emt 0:00:04]} 14. Qc2 {[%emt 0:00:05]} Qc7 {[%emt 0:00:23] E08: Closed Catalan: Main Line: 7 Qc2.} 15. Bf4 {[%emt 0:00:15]} Bd6 {[%emt 0:00:26]} 16. Bxd6 {[%emt 0:00:09]} Qxd6 {[%emt 0:00:02] White is slightly better.} 17. c5 {[%emt 0:00:03]} Qc7 {[%emt 0:00:22]} 18. Ne5 {[%emt 0:00:06]} Nd5 {[%emt 0:00:25] [#]} 19. a3 $146 {[%emt 0:00:18]} ({Predecessor:} 19. Rac1 b5 20. Be4 h6 21. Re1 Rcd8 22. Qe2 Qe7 23. Bb1 a5 24. h4 Rfe8 25. Qe4 {½-½ (91) Hausrath,D (2475)-Heinrich,T (2172) Playchess.com INT 2020}) 19... Rfd8 {[%emt 0:01:20]} 20. Rac1 {[%emt 0:00:09]} b5 {[%emt 0:02:35]} 21. Rd2 {[%emt 0:00:36]} a5 {[%emt 0:00:32]} 22. Re1 {[%emt 0:00:09]} b4 {[%emt 0:00:05]} (22... Ra8 $14) 23. a4 {[%emt 0:02:16]} Ba6 {[%emt 0:00:50]} 24. h4 {[%emt 0:00:05][%cal Bh2h4,Bh4h5][%mdl 32]} Re8 {[%emt 0:00:31]} 25. h5 {[%emt 0:00:32]} h6 {[%emt 0:00:26]} 26. f4 {[%emt 0:00:25]} Qd8 {[%emt 0:01:02]} 27. Kh2 {[%emt 0:00:20] 0x0.0023601c7d42dp-1022s more active pieces.} Qf6 {[%emt 0:00:21]} 28. Rf2 {[%emt 0:00:31] aiming for f5.} Kh8 $2 {[%emt 0:00:43][%mdl 8192] [#]} (28... Ne7 $16 {is a better chance.}) 29. Bh3 {[%emt 0:00:25]} ({Weaker is} 29. Nxc6 Rxc6 30. Bxd5 Rcc8 $16) 29... Ne7 {[%emt 0:03:56]} 30. Qe4 {[%emt 0:00:27]} (30. f5 $142 {Threatens to win with fxe6.} exf5 31. Bxf5 Nxf5 32. Rxf5 Rxe5 33. Rexe5) 30... Bb7 $2 {[%emt 0:00:10]} (30... Rc7 31. Kg1 Rf8) 31. Nd7 {[%emt 0:00:07] Weighted Error Value: White=0.17 (very precise) /Black=0.54} 1-0

[Event "Czech Open-Rapid 2022"]
[Site "Pardubice"]
[Date "2022.07.20"]
[Round "1.9"]
[White "Kvapil, Petr"]
[Black "Vykouk, Jan"]
[Result "0-1"]
[ECO "A16"]
[WhiteElo "1584"]
[BlackElo "2476"]
[Annotator "TA"]
[PlyCount "80"]
[EventDate "2022.07.20"]
[EventType "swiss"]
[EventCountry "CZE"]
[SourceTitle "playchess.com"]
[Source "ChessBase"]
[SourceQuality "1"]
[TimeControl "1200+10"]

{[%evp 13,80,4,34,0,35,27,26,-18,-19,-18,-19,-69,-44,-55,-46,-55,-42,-75,-34,-134,-135,-157,-133,-129,-106,-115,-106,-197,-202,-192,-216,-318,-313,-310,-303,-299,-248,-287,-228,-211,-216,-370,-307,-647,-646,-722,-712,-711,-702,-785,-758,-972,-856,-988,-946,-1712,-1705,-1939,-1769,-1487,-1034,-2072,-1980,-1645,-866,-845,-831,-816,-796]} 1. c4 {[%emt 0:00:03]} Nf6 {[%emt 0:00:03]} 2. Nc3 {[%emt 0:00:04]} g6 3. d4 {[%emt 0:00:20]} Bg7 {[%emt 0:00:15]} 4. g3 {[%emt 0:00:04]} O-O {[%emt 0:00:04]} 5. Bg2 {[%emt 0:00:04]} d6 {[%emt 0:00:05]} 6. e3 {[%emt 0:00:13]} c6 {[%emt 0:00:15]} 7. Nge2 {[%emt 0:00:07]} Bd7 {[%emt 0:00:29] [#]} 8. Bd2 $146 {[%emt 0:00:29] E61: King's Indian: Early deviations for White, including Smyslov System.} ({Predecessor:} 8. O-O Qc8 9. Re1 Na6 10. e4 e5 11. f3 b5 12. cxb5 cxb5 13. a3 b4 14. axb4 Nxb4 15. Be3 a5 {0-1 (27) Rasmussen,K (2450)-Groszpeter,A (2495) Norresundby 1992}) 8... Qc8 {[%emt 0:00:08]} 9. O-O {[%emt 0:00:35]} Bh3 {[%emt 0:00:11]} 10. Nf4 {[%emt 0:00:07] White has an edge.} Bxg2 {[%emt 0:00:03]} 11. Kxg2 {[%emt 0:00:08]} e5 12. dxe5 {[%emt 0:00:37]} ({Better is} 12. Nd3 $11) 12... dxe5 $15 {[%emt 0:00:15]} 13. Nfe2 {[%emt 0:00:18]} Rd8 {[%emt 0:00:47]} 14. Qc2 {[%emt 0:00:05]} Na6 {[%emt 0:00:19]} 15. a3 {[%emt 0:00:56] Prevents Nb4.} Qg4 {[%emt 0:01:00]} 16. Rad1 {[%emt 0:00:16]} (16. e4 $15) 16... Qxc4 $17 {[%emt 0:00:12]} ({Worse is} 16... e4 17. h3 Qf3+ 18. Kh2 $15) 17. Nc1 {[%emt 0:00:43]} Nc5 {[%emt 0:00:32]} 18. b3 {[%emt 0:00:10]} Qe6 {[%emt 0:00:26] Black is much more active.} 19. b4 {[%emt 0:00:18]} Ncd7 {[%emt 0:00:15]} 20. Ne4 {[%emt 0:00:12]} (20. e4 $17) 20... Nxe4 $19 {[%emt 0:01:58]} 21. Qxe4 {[%emt 0:00:12]} Nf6 {[%emt 0:00:06]} 22. Qb1 {[%emt 0:00:28]} (22. Qc2 $142) 22... Qd5+ {[%emt 0:00:14]} 23. f3 {[%emt 0:00:09]} e4 {[%emt 0:00:05]} 24. f4 {[%emt 0:00:32]} Qc4 {[%emt 0:01:16]} 25. Qb3 {[%emt 0:00:19]} Qxb3 {[%emt 0:00:48]} 26. Nxb3 {[%emt 0:00:07]} b6 {[%emt 0:00:10] ...Rd3 is the strong threat.} 27. Bc3 $2 {[%emt 0:00:11]} (27. Bc1) 27... Nd5 {[%emt 0:00:03][%cal Bf6d5,Bd5e3,Be3d1][%mdl 32]} 28. Bxg7 $2 {[%emt 0:00:19]} (28. Bd2) 28... Nxe3+ {[%emt 0:00:07] Black is clearly winning.} ({And not} 28... Kxg7 29. Kf2 $17) 29. Kh3 {[%emt 0:00:45]} Rxd1 {[%emt 0:00:04]} 30. Rxd1 {[%emt 0:00:12]} Nxd1 {[%emt 0:00:04][%mdl 4096] Endgame KRN-KBN} 31. Bd4 {[%emt 0:00:08]} e3 {[%emt 0:00:05] [#] White must now prevent ...e2.} 32. Nc1 {[%emt 0:00:16]} c5 {[%emt 0:00:16]} 33. Be5 {[%emt 0:00:42]} Rd8 {[%emt 0:00:19]} 34. Kg4 {[%emt 0:00:03]} Rd2 {[%emt 0:00:10]} 35. Kf3 {[%emt 0:00:12]} Rf2+ {[%emt 0:00:16]} 36. Ke4 {[%emt 0:00:15]} e2 {[%emt 0:00:14]} 37. Nd3 {[%emt 0:00:08]} Rf1 {[%emt 0:00:08] [#] Strongly threatening ...c4.} 38. bxc5 {[%emt 0:01:02]} e1=Q+ {[%emt 0:00:10]} 39. Nxe1 {[%emt 0:00:05]} Rxe1+ {[%emt 0:00:03]} 40. Kd5 {[%emt 0:00:03]} bxc5 {[%emt 0:00:05] White got outplayed after the opening.  Weighted Error Value: White=0.80/Black=0.16 (very precise)} 0-1

[Event "Czech Open-Rapid 2022"]
[Site "Pardubice"]
[Date "2022.07.20"]
[Round "1.10"]
[White "Luch, Michal"]
[Black "Babulova, Mariana"]
[Result "1-0"]
[ECO "D36"]
[WhiteElo "2375"]
[BlackElo "1631"]
[Annotator "TA"]
[PlyCount "53"]
[EventDate "2022.07.20"]
[EventType "swiss"]
[EventCountry "CZE"]
[SourceTitle "playchess.com"]
[Source "ChessBase"]
[SourceQuality "1"]
[TimeControl "1200+10"]

{[%evp 13,53,21,52,52,48,44,54,31,94,79,108,70,75,88,102,52,117,108,167,178,176,175,173,170,166,150,221,220,215,220,235,217,372,366,329,219,393,217,993,685,670,670]} 1. d4 {[%emt 0:00:02]} d5 {[%emt 0:00:04]} 2. c4 {[%emt 0:00:01]} e6 {[%emt 0:00:03]} 3. Nc3 {[%emt 0:00:02]} Nf6 {[%emt 0:00:09]} 4. cxd5 {[%emt 0:00:02]} exd5 {[%emt 0:00:02]} 5. Bg5 {[%emt 0:00:01]} c6 {[%emt 0:00:07]} 6. Qc2 {[%emt 0:00:04]} Bb4 {[%emt 0:00:17]} 7. e3 {[%emt 0:00:17]} Nbd7 {[%emt 0:00:10]} 8. Bd3 {[%emt 0:00:03] D35: Queen's Gambit Declined: Exchange Variation.} h6 {[%emt 0:00:24] 8...h6 is better than 8...Qa5.} 9. Bh4 {[%emt 0:00:02]} Qc7 {[%emt 0:00:17]} 10. Nge2 {[%emt 0:00:25] [#] White is slightly better.} b6 $146 {[%emt 0:00:30]} (10... O-O $14) ({Predecessor:} 10... Bd6 11. Bg3 O-O 12. O-O Bxg3 13. Nxg3 Nb6 14. Rac1 Qe7 15. Qb3 Be6 16. Bb1 Ne8 {1-0 (46) Cherednichenko,S (2225)-Doluhanova,E Kiev 1998}) 11. O-O $16 {[%emt 0:00:27] aiming for e4.} O-O {[%emt 0:00:32]} 12. Rac1 {[%emt 0:01:54][%cal Oc3b5] Hoping for Nb5! White is more active.} Bb7 {[%emt 0:00:37]} 13. Bf5 {[%emt 0:01:27]} Bd6 {[%emt 0:00:42]} 14. h3 {[%emt 0:00:44]} (14. Bxd7 $16 {Strongly threatening Bf5.} Qxd7 15. Bxf6 gxf6 16. Ng3) 14... c5 {[%emt 0:01:04]} (14... Rfe8 $14) 15. Nb5 {[%emt 0:00:55]} (15. Rfd1 {is more complex.} Qc6 16. Bxd7 Nxd7 17. dxc5 bxc5 18. Nxd5 Nb6 19. e4) 15... Qb8 {[%emt 0:00:18]} (15... Bh2+ $16 16. Kh1 Qc6) 16. Bxf6 {[%emt 0:03:09]} Nxf6 {[%emt 0:00:34]} 17. Nxd6 {[%emt 0:00:02]} ({Much less strong is} 17. dxc5 $6 Bxc5 18. b4 Bxb4 $16) 17... Qxd6 {[%emt 0:00:02]} 18. dxc5 {[%emt 0:00:01]} bxc5 {[%emt 0:00:18]} 19. Qxc5 {[%emt 0:00:02]} Qe5 {[%emt 0:00:33]} (19... Qxc5 $16 20. Rxc5 Ba6) 20. Nd4 $18 {[%emt 0:00:19]} g6 {[%emt 0:00:32]} 21. Bd3 {[%emt 0:00:16]} Rfc8 {[%emt 0:00:51]} 22. Qa5 {[%emt 0:00:34]} Ne4 $2 {[%emt 0:01:26] [#]} (22... Qb8 {might work better.} 23. b3 Ne4) 23. Rxc8+ {[%emt 0:00:32]} Bxc8 {[%emt 0:00:26]} 24. Nc6 {[%emt 0:01:09]} Qg5 {[%emt 0:00:31]} (24... Qd6 {was necessary.}) 25. Qxd5 {[%emt 0:00:21]} Nc5 $2 {[%emt 0:01:58] [#]} (25... Qxd5 26. Ne7+ Kg7 27. Nxd5 Nc5) 26. Ne7+ $1 {[%emt 0:03:00][%mdl 512]} Qxe7 {[%emt 0:01:02]} 27. Qxa8 {[%emt 0:00:03] Weighted Error Value: White=0.46/Black=0.48} 1-0

[Event "Czech Open-Rapid 2022"]
[Site "Pardubice"]
[Date "2022.07.20"]
[Round "1.11"]
[White "Skoloud, Barnabas"]
[Black "Lalic, Bogdan"]
[Result "0-1"]
[ECO "B20"]
[WhiteElo "1852"]
[BlackElo "2412"]
[Annotator "TA"]
[PlyCount "54"]
[EventDate "2022.07.20"]
[EventType "swiss"]
[EventCountry "CZE"]
[SourceTitle "playchess.com"]
[Source "ChessBase"]
[SourceQuality "1"]
[TimeControl "1200+10"]

{[%evp 9,54,-18,-25,-25,-27,-70,-74,-74,-76,-87,-91,-111,-118,-152,-152,-172,-137,-248,-239,-353,-356,-402,-411,-398,-399,-398,-395,-439,-450,-502,-497,-529,-449,-463,-447,-510,-451,-520,-512,-534,-528,-595,-577,-744,-738,-740,-718]} 1. e4 {[%emt 0:00:01]} c5 {[%emt 0:00:04]} 2. a3 {[%emt 0:00:02]} Nc6 {[%emt 0:00:46]} 3. b4 {[%emt 0:00:09]} Nf6 {[%emt 0:00:15]} 4. b5 {[%emt 0:01:25]} Nd4 {[%emt 0:00:10]} 5. c3 {[%emt 0:00:19]} Ne6 {[%emt 0:00:07]} 6. e5 {[%emt 0:00:33] B20: Sicilian: Unusual White 2nd moves.} Nd5 {[%emt 0:00:05]} 7. c4 {[%emt 0:01:47]} Ndc7 {[%emt 0:00:16] [#]} 8. g3 $146 {[%emt 0:01:06] Black is better.} ({Predecessor:} 8. Nf3 g6 9. Bb2 Bg7 10. g3 b6 11. Bg2 Bb7 12. O-O O-O 13. d3 a6 14. bxa6 Rxa6 {0-1 (55) Vlasov,S (2229)-Gorbatov,A (2389) Moscow 2018}) 8... g6 {[%emt 0:00:06]} 9. f4 {[%emt 0:05:27]} Bg7 {[%emt 0:00:09]} 10. Nc3 {[%emt 0:00:24]} d6 {[%emt 0:00:10]} 11. Bg2 {[%emt 0:00:28]} dxe5 {[%emt 0:00:07]} 12. fxe5 {[%emt 0:01:33]} Bxe5 {[%emt 0:00:06]} 13. Qe2 {[%emt 0:00:12]} (13. Nf3 $17 {was called for.} Bg7 14. Bb2) 13... Bg7 $19 {[%emt 0:00:08]} 14. Nf3 {[%emt 0:01:14]} (14. Rb1 $142) 14... Nd4 {[%emt 0:00:18]} 15. Nxd4 {[%emt 0:00:12]} cxd4 {[%emt 0:00:05]} ({Not} 15... Qxd4 16. Bb2 Qd8 17. O-O $15) 16. O-O {[%emt 0:00:46]} dxc3 {[%emt 0:00:10]} 17. dxc3 {[%emt 0:00:26]} O-O {[%emt 0:00:06]} 18. Bg5 {[%emt 0:00:28]} Ne6 {[%emt 0:00:10] Black is clearly winning.} 19. Rad1 {[%emt 0:00:08]} Qc7 {[%emt 0:00:07]} ({Worse is} 19... Nxg5 20. Rxd8 Rxd8 21. Qxe7 Nh3+ 22. Kh1 $15) 20. Bd2 {[%emt 0:02:22]} Rb8 {[%emt 0:00:18]} 21. Bd5 {[%emt 0:00:17]} b6 {[%emt 0:00:22]} 22. Rf2 {[%emt 0:00:27]} Nd8 {[%emt 0:00:54]} 23. Re1 {[%emt 0:00:58]} e5 {[%emt 0:00:15]} 24. Bg5 {[%emt 0:01:38]} Be6 {[%emt 0:00:11]} 25. Bxd8 {[%emt 0:00:16]} Rbxd8 {[%emt 0:00:05]} 26. Bc6 {[%emt 0:00:30]} Qd6 {[%emt 0:00:11]} 27. a4 {[%emt 0:00:36]} Qc5 {[%emt 0:00:03] White did not feel at home in the position after the opening.  Weighted Error Value: White=0.47/Black=0.09 (flawless)} 0-1

[Event "Czech Open-Rapid 2022"]
[Site "Pardubice"]
[Date "2022.07.20"]
[Round "1.12"]
[White "Neuman, Petr"]
[Black "Fiala, Jan"]
[Result "1-0"]
[ECO "E91"]
[WhiteElo "2378"]
[BlackElo "2019"]
[Annotator "TA"]
[PlyCount "85"]
[EventDate "2022.07.20"]
[EventType "swiss"]
[EventCountry "CZE"]
[SourceTitle "playchess.com"]
[Source "ChessBase"]
[SourceQuality "1"]
[TimeControl "1200+10"]

{[%evp 14,84,34,33,50,63,71,23,61,0,56,54,109,41,129,125,235,120,115,113,104,91,135,125,204,206,249,237,227,178,239,37,252,275,287,146,243,278,257,262,281,298,281,269,287,261,269,18,313,316,276,189,210,177,191,190,349,321,494,325,1156,1159,1404,579,1814,840,709,622,29985,29986,29998,29999,29999]} 1. d4 {[%emt 0:00:02]} Nf6 {[%emt 0:00:01]} 2. c4 {[%emt 0:00:02]} g6 {[%emt 0:00:07]} 3. Nc3 {[%emt 0:00:01]} Bg7 {[%emt 0:00:01]} 4. e4 {[%emt 0:00:02]} O-O {[%emt 0:00:03]} 5. Nf3 {[%emt 0:00:02]} d6 {[%emt 0:00:06]} 6. Be2 {[%emt 0:00:02]} Nbd7 {[%emt 0:00:16]} 7. Be3 {[%emt 0:00:08]} e5 {[%emt 0:00:06]} 8. d5 {[%emt 0:00:02]} b6 {[%emt 0:00:29] E93: King's Indian: Classical: Petrosian System with 7...Nbd7.} 9. Nd2 {[%emt 0:00:03]} Ne8 {[%emt 0:00:56] [#]} 10. b4 $146 {[%emt 0:00:24]} (10. g4 $16) ({Predecessor:} 10. g4 Nc5 11. b4 Nb7 12. Rg1 Nf6 13. h4 h6 14. g5 hxg5 15. Bxg5 Qd7 16. Bxf6 Bxf6 {1-0 (52) Deveci,S (1922)-Kuefner,M Davos 2020}) 10... f5 {[%emt 0:00:09] And now ...f4 would win. White has an edge.} 11. f3 {[%emt 0:00:02]} (11. Nb3 $14) 11... f4 {[%emt 0:00:13]} (11... Bh6 $11 12. Bxh6 Qh4+ 13. g3 Qxh6) 12. Bf2 $14 {[%emt 0:00:02]} Nef6 {[%emt 0:00:26]} ({Black should try} 12... a5 $14) 13. a4 {[%emt 0:00:13]} (13. Nb3 $16) 13... g5 {[%emt 0:00:49]} (13... a5 $14) 14. a5 $16 {[%emt 0:00:02]} Rb8 {[%emt 0:00:56]} (14... a6 $16 {was necessary.}) 15. axb6 {[%emt 0:00:07]} ({White should play} 15. Nb5 $18) 15... axb6 {[%emt 0:00:02]} 16. Ra7 {[%emt 0:00:33]} Rf7 {[%emt 0:00:27]} 17. Qa4 {[%emt 0:00:25] White is more active.} Nf8 {[%emt 0:00:12]} 18. c5 {[%emt 0:00:51]} g4 {[%emt 0:00:30]} (18... bxc5 $16 {was worth a try.} 19. bxc5 g4) 19. cxb6 $1 $18 {[%emt 0:03:09]} cxb6 {[%emt 0:00:10]} 20. Rxf7 {[%emt 0:00:20]} Kxf7 {[%emt 0:00:04]} 21. Nc4 {[%emt 0:00:41]} Kg8 {[%emt 0:01:12]} (21... gxf3 $142 22. gxf3 Ne8 23. Qa7+ (23. Rg1 Bh3 $16) 23... Rb7) 22. Nb5 $2 {[%emt 0:00:46]} (22. Qa7 $18 N8d7 23. fxg4 (23. Nxd6 Bf8 $16)) 22... g3 $2 {[%emt 0:03:17]} (22... Bd7 $14 23. Ncxd6 Ra8) 23. hxg3 {[%emt 0:00:22]} fxg3 {[%emt 0:00:01]} 24. Be3 {[%emt 0:00:02]} (24. Ncxd6 gxf2+ 25. Kxf2 Ng6 $15) (24. Bxg3 $18 Bd7 25. Ncxd6) 24... Ne8 {[%emt 0:00:33]} (24... Ng6 $16 25. Qa7 (25. Ncxd6 Bd7 $18) (25. Nbxd6 Bf8 $18) 25... Bd7) 25. Na7 {[%emt 0:02:26]} Bd7 {[%emt 0:00:45]} 26. b5 {[%emt 0:01:08]} ({But not} 26. Nc6 $6 b5 $18) 26... Ng6 {[%emt 0:01:37]} 27. Nc6 {[%emt 0:07:13]} Bxc6 {[%emt 0:00:02]} 28. dxc6 {[%emt 0:00:01]} (28. bxc6 b5 29. Qa5 bxc4 $17) 28... Nf4 {[%emt 0:01:50]} 29. Bf1 {[%emt 0:00:26] Strongly threatening Qa7.} d5 {[%emt 0:00:32]} 30. Nd2 {[%emt 0:00:51]} ({White has to play} 30. exd5 $18 {Qc2 is the strong threat.} h6 31. d6 Nxd6 32. Nxe5 $1 {[%mdl 512]} Bxe5 33. Bxf4) 30... d4 $2 {[%emt 0:00:36][%mdl 8192]} (30... Ra8 $11 31. Qd1 Nf6) 31. Bxf4 {[%emt 0:00:25]} exf4 {[%emt 0:00:01]} 32. Bc4+ {[%emt 0:00:19]} Kh8 {[%emt 0:00:21]} 33. Ke2 {[%emt 0:00:20]} Ra8 {[%emt 0:00:27]} 34. Qb3 {[%emt 0:00:09] Chess con chili.} Qd6 $2 {[%emt 0:00:11]} (34... h6 35. Bd3 Qe7) 35. Bd3 $1 {[%emt 0:00:37][%cal Oh1h7] Threatens to win with Rxh7+!} Be5 {[%emt 0:01:25]} (35... h6 $142 36. Qf7 Nc7) 36. Nc4 {[%emt 0:02:47]} ({Less strong is} 36. Qf7 Ng7 37. Qb7 Qb8 $18) 36... Qc7 {[%emt 0:00:08]} (36... Qe6 37. Rh5 Bc7) 37. Rh5 {[%emt 0:00:06]} Bg7 {[%emt 0:00:57] [#]} 38. e5 {[%emt 0:00:02]} (38. Nxb6 $142 $1 {[%mdl 512]} Rd8 (38... Ra7 39. e5) 39. e5 $1 Bxe5 40. Rxh7+ Qxh7 41. Bxh7 Kxh7 42. Nd7 d3+ 43. Qxd3+ Kh6 44. Nxe5 Rxd3 45. Nxd3) 38... h6 {[%emt 0:00:02] [#]} 39. Bc2 {[%emt 0:00:07]} (39. Nxb6 $142 $1 {[%mdl 512]} Qxb6 40. Qe6) 39... Bf8 {[%emt 0:00:54]} 40. Qd3 {[%emt 0:00:26]} Qf7 {[%emt 0:00:25]} 41. Rf5 {[%emt 0:00:02] White mates.} Qg7 {[%emt 0:00:12] [#]} 42. Rxf8+ $1 {[%emt 0:00:11][%mdl 512]} Qxf8 {[%emt 0:00:01]} 43. Qh7# {Weighted Error Value: White=0.62/Black=0.93} 1-0

[Event "Czech Open-Rapid 2022"]
[Site "Pardubice"]
[Date "2022.07.20"]
[Round "1.13"]
[White "Brousek, Jan"]
[Black "Dobrowolski, Piotr"]
[Result "0-1"]
[ECO "B21"]
[WhiteElo "1538"]
[BlackElo "2423"]
[Annotator "TA"]
[PlyCount "42"]
[EventDate "2022.07.20"]
[EventType "swiss"]
[EventCountry "CZE"]
[SourceTitle "playchess.com"]
[Source "ChessBase"]
[SourceQuality "1"]
[TimeControl "1200+10"]

{[%evp 9,42,-16,-2,-6,31,-30,-24,-16,21,9,12,0,24,-29,-29,-18,-30,-32,0,0,0,-33,-41,-50,-21,-90,-85,-155,-114,-138,-77,-177,-165,-616,-609]} 1. e4 {[%emt 0:00:03]} c5 {[%emt 0:00:03]} 2. f4 {[%emt 0:00:02]} d5 {[%emt 0:00:02]} 3. exd5 {[%emt 0:00:06]} Nf6 {[%emt 0:00:02]} 4. Nc3 {[%emt 0:00:13]} Nxd5 {[%emt 0:00:02]} 5. Nxd5 {[%emt 0:00:07]} Qxd5 {[%emt 0:00:02]} 6. Qf3 {[%emt 0:00:03] B21: Sicilian: 2 f4 and Morra Gambit.} Qd7 {[%emt 0:00:36] [#]} 7. g3 $146 {[%emt 0:00:15]} (7. b3 $14) ({Predecessor:} 7. Bc4 Nc6 8. c3 g6 9. Nh3 Bg7 10. O-O O-O 11. Ng5 Na5 12. Be2 Rb8 13. h4 b6 {0-1 (35) Coburn,J (1833)-Harman,K (2166) Bournemouth 2015}) 7... Nc6 $11 {[%emt 0:00:11] [#] aiming for ...Nd4.} 8. Bb5 {[%emt 0:00:28] Black has an edge.} e6 {[%emt 0:01:44]} (8... g6 {feels hotter.} 9. Bxc6 bxc6 10. Qc3 Qd5) 9. Bxc6 {[%emt 0:00:04]} bxc6 {[%emt 0:00:04]} 10. d3 {[%emt 0:00:18]} Be7 {[%emt 0:00:19]} 11. Bd2 {[%emt 0:00:16]} (11. Qe2 $142) 11... Bf6 {[%emt 0:00:28]} 12. Bc3 {[%emt 0:00:04]} Bxc3+ {[%emt 0:00:02]} 13. bxc3 {[%emt 0:00:03]} Rb8 {[%emt 0:00:01][%cal Oc5c4]} (13... c4 $5) 14. c4 {[%emt 0:00:26]} Qd4 {[%emt 0:01:29]} 15. Rd1 {[%emt 0:01:21]} Qc3+ {[%emt 0:00:09]} 16. Kf2 {[%emt 0:00:33]} O-O {[%emt 0:00:44]} 17. Ne2 {[%emt 0:00:59]} (17. Rc1 $1 $11) 17... Qxc2 $17 {[%emt 0:00:13]} 18. Ra1 {[%emt 0:01:07]} (18. Rc1 $142 Qa4 19. Rb1) 18... Rd8 {[%emt 0:00:43]} 19. Rhd1 {[%emt 0:00:16]} Qa4 {[%emt 0:00:44] Black is more active.} (19... e5 $142 {White must now prevent ...exf4.} 20. fxe5 h6) 20. Nc3 {[%emt 0:01:09]} (20. Rd2 $17) 20... Rb2+ $19 {[%emt 0:00:11]} 21. Kg1 $2 {[%emt 0:00:04] [#]} (21. Kf1 Qa3 22. Ne4) 21... Qc2 $1 {[%emt 0:00:23][%csl LRc3,LRh2] Weighted Error Value: White=0.77/Black=0.19 (very precise)} 0-1